bitfinex/quotes_ETHUSD_20220310
["timestamp","ask_amount","ask_price","bid_price","bid_amount"]
[1646942995368,0.13709591,2609.3,2609.2,17.19783867]
[1646942995812,0.13709591,2609.3,2609.2,18.19783867]
[1646942996219,0.13709591,2609.3,2609.2,17.19783867]
[1646942996415,0.13709591,2609.3,2609.2,14.19783867]
[1646942996615,0.13709591,2609.3,2609.2,13.49369216]
[1646942997213,0.13709591,2609.3,2609.2,16.49369216]
[1646942999016,0.13709591,2609.3,2609.2,16.87769216]
[1646942999216,0.13709591,2609.3,2609.2,17.58183867]
[1646943000168,0.13709591,2609.3,2609.2,14.58183867]
[1646943000566,0.13597272,2609.3,2609.2,14.58183867]
[1646943001066,1.221,2610.1,2609.9,0.87498348]
[1646943001269,0.75834861,2610.4,2609.4,13.67826]
[1646943001467,0.75834861,2610.4,2609.5,0.11909216]
[1646943001468,1.45479327,2610.3,2609.5,0.11909216]
[1646943001766,1.45479327,2610.3,2609.5,0.36909216]
[1646943001967,1.45479327,2610.3,2609.6,0.11909216]
[1646943002366,0.003766,2610.0,2609.8,1.20707358]
[1646943002567,0.003766,2610.0,2609.9,0.11909216]
[1646943003206,1.45479327,2610.3,2609.9,0.11909216]
[1646943003608,0.00376602,2610.1,2609.9,0.11909216]
[1646943004415,1.45479327,2610.3,2609.9,0.11909216]
[1646943004815,0.00376605,2610.1,2609.9,0.11909216]
[1646943005715,1.45479327,2610.3,2609.9,0.11909216]
[1646943005918,1.45479327,2610.3,2610.0,0.95809]
[1646943006116,0.00376605,2610.1,2610.0,0.95809]
[1646943006317,1.45855932,2610.1,2610.0,1.07532283]
[1646943007068,1.45479327,2610.1,2610.0,1.07532283]
[1646943008070,1.45479327,2610.5,2610.0,1.07532283]
[1646943008268,0.00376998,2610.2,2610.1,0.11723283]
[1646943008868,1.45856325,2610.2,2610.1,0.11723283]
[1646943009270,1.45479327,2610.2,2610.1,0.11723283]
[1646943010716,0.04322123,2610.2,2610.1,0.11723283]
[1646943010907,1.4980145,2610.2,2610.1,0.11723283]
[1646943011308,1.4980145,2610.2,2610.0,0.11723283]
[1646943011507,0.04322123,2610.2,2610.1,0.11723283]
[1646943011909,0.21688188,2610.0,2609.8,1.20707358]
[1646943012109,0.21688188,2610.0,2609.9,0.11724999]
[1646943012509,1.67047125,2610.0,2609.9,0.11724999]
[1646943013115,1.67047125,2610.0,2609.7,0.11724999]
[1646943013312,1.45358937,2609.9,2609.8,0.11724999]
[1646943013914,1.45358937,2609.9,2609.7,0.11724999]
[1646943014214,1.45358937,2609.9,2609.8,1.13867428]
[1646943014456,1.45358937,2609.9,2609.8,0.11724999]
[1646943015060,1.45358937,2609.9,2609.7,0.11724999]
[1646943016862,1.45750799,2609.9,2609.7,0.11724999]
[1646943017063,1.45750799,2609.9,2609.7,0.11542595]
[1646943017265,1.45750799,2609.9,2609.3,3.85687]
[1646943017266,3.5,2609.8,2609.1,1.9166]
[1646943017465,0.384,2609.8,2608.9,3.59572035]
[1646943017661,0.00391862,2609.9,2608.9,0.07999735]
[1646943017662,1.38686868,2609.7,2608.9,0.07999735]
[1646943018064,0.00392515,2609.6,2608.9,0.07999735]
[1646943018316,3.88792515,2609.6,2608.9,0.07999735]
[1646943018614,0.384,2609.5,2608.6,0.00155517]
[1646943018815,0.384,2609.4,2608.5,0.01611874]
[1646943019015,0.04890088,2609.3,2608.5,0.71633851]
[1646943019411,0.04890088,2609.3,2608.5,0.72009914]
[1646943019817,0.04890088,2609.3,2608.5,1.67867914]
[1646943020219,0.04890088,2609.3,2608.5,1.67491851]
[1646943020417,0.00375961,2609.0,2608.9,0.90491891]
[1646943020824,0.00375961,2609.0,2608.9,1.86338891]
[1646943021422,0.04506536,2609.7,2608.9,1.86338891]
[1646943021620,0.00376481,2609.1,2608.9,1.86338891]
[1646943022063,0.00376481,2609.1,2609.0,12.5127504]
[1646943022265,0.00376481,2609.1,2609.0,15.0667504]
[1646943022461,1.17182767,2609.8,2609.0,15.0667504]
[1646943022661,1.17182767,2609.8,2609.3,0.95822]
[1646943022863,0.04312767,2609.8,2609.3,1.04441072]
[1646943023063,0.04312767,2609.8,2609.3,12.76441072]
[1646943024066,0.00377536,2609.7,2609.3,12.76441072]
[1646943024261,0.00377536,2609.7,2609.3,13.72260002]
[1646943024668,0.00377536,2609.7,2609.3,14.42652476]
[1646943024868,0.00377536,2609.7,2609.4,0.0859988]
[1646943025069,0.04312767,2609.8,2609.6,1.04870775]
[1646943025268,0.04312767,2609.8,2609.7,1.22363806]
[1646943025472,0.21688188,2610.0,2609.7,1.22363806]
[1646943026312,0.05328692,2610.5,2609.8,0.95805]
[1646943026515,1.1317,2610.7,2609.9,0.0730399]
[1646943026713,1.1317,2610.7,2610.0,11.80143146]
[1646943026913,1.1317,2610.7,2610.1,1.01484324]
[1646943027110,1.1317,2610.7,2610.2,0.25]
[1646943027311,0.05014678,2610.9,2610.2,0.25]
[1646943027711,0.05014678,2610.9,2610.4,0.95793]
[1646943027912,0.05014678,2610.9,2610.5,1.19938045]
[1646943029968,0.00242577,2610.8,2610.5,1.19938045]
[1646943030868,0.05014678,2610.9,2610.5,1.19938045]
[1646943031271,0.00242577,2610.8,2610.5,1.19938045]
[1646943032069,0.05014678,2610.9,2610.5,1.19938045]
[1646943032470,0.00437707,2610.8,2610.5,1.19938045]
[1646943033072,0.00437707,2610.8,2610.1,3.5910129]
[1646943033073,0.4851426,2610.4,2610.1,2.59111]
[1646943033313,0.4851426,2610.4,2610.1,0.95801]
[1646943033611,0.4851426,2610.4,2610.0,1.99735146]
[1646943034011,0.4851426,2610.4,2610.0,1.91592]
[1646943034414,0.4851426,2610.4,2610.0,2.93502997]
[1646943034818,0.0043774,2610.3,2610.0,1.01910997]
[1646943035821,0.4851426,2610.4,2610.0,1.01910997]
[1646943036019,0.00437744,2610.3,2610.0,1.01910997]
[1646943037059,0.4851426,2610.4,2610.0,1.01910997]
[1646943037259,1.42728708,2610.3,2610.1,0.14655386]
[1646943037459,0.00424612,2610.3,2610.1,0.14655386]
[1646943038259,0.4851426,2610.4,2610.1,0.14655386]
[1646943038460,1.42731953,2610.3,2610.1,0.14655386]
[1646943038660,0.00424608,2610.3,2610.1,0.14655386]
[1646943039564,0.08732092,2610.3,2610.1,0.14655386]
[1646943040720,0.08307484,2610.3,2610.1,0.14655386]
[1646943040908,0.08715811,2610.3,2610.1,0.14655386]
[1646943041717,0.05355494,2610.1,2609.4,0.07396406]
[1646943041911,1.42313718,2610.0,2609.5,0.14666333]
[1646943042513,3.54688691,2609.9,2609.6,0.14666333]
[1646943042714,3.54688691,2609.9,2609.0,0.07142005]
[1646943042715,1.80713718,2609.8,2609.0,0.07142005]
[1646943042913,1.80713718,2609.8,2609.1,0.14679211]
[1646943042914,0.05226364,2609.6,2609.1,0.14679211]
[1646943043113,0.05226364,2609.6,2609.2,0.14679211]
[1646943043114,1.42313718,2609.5,2609.2,0.14679211]
[1646943043313,3.5,2609.4,2608.7,0.00155517]
[1646943043514,1.42313718,2609.3,2608.6,0.14683869]
[1646943043713,3.5,2609.2,2608.7,1.20244788]
[1646943043913,1.42313718,2609.1,2608.8,0.22710868]
[1646943044116,4.54181013,2609.5,2608.9,0.14683869]
[1646943044319,1.42281315,2609.4,2608.9,0.14683869]
[1646943044577,4.45867,2609.3,2608.9,0.14683869]
[1646943044776,1.42281315,2609.2,2609.0,0.14683869]
[1646943044975,1.42281315,2609.2,2608.5,0.09907497]
[1646943044976,3.5,2609.1,2608.5,0.0975198]
[1646943045175,3.5,2609.1,2608.6,0.14687732]
[1646943045378,3.5,2609.2,2608.6,0.14687732]
[1646943045577,1.42199729,2609.1,2608.6,0.14687732]
[1646943045780,1.08321279,2608.9,2608.6,0.14687732]
[1646943046179,3.5,2608.8,2608.6,0.14687732]
[1646943046378,0.04524468,2608.7,2608.6,0.14687732]
[1646943047878,3.54524468,2608.7,2608.5,0.012192]
[1646943048079,3.54524468,2608.7,2608.5,0.01627365]
[1646943049112,3.54524468,2608.7,2608.5,0.012192]
[1646943049314,0.04690334,2608.6,2608.5,0.01627368]
[1646943049715,3.54690334,2608.6,2608.5,0.01627368]
[1646943050316,3.54690334,2608.6,2608.5,0.012192]
[1646943051814,0.04690334,2608.6,2608.5,0.012192]
[1646943053061,0.08337305,2608.8,2608.5,0.012192]
[1646943053260,0.08357857,2608.9,2608.8,0.3098777]
[1646943053460,0.08357857,2608.9,2608.3,0.26620939]
[1646943053660,0.08357857,2608.9,2608.4,0.13914574]
[1646943054360,0.08357857,2608.9,2608.2,0.0067604]
[1646943054568,0.08357857,2608.9,2608.3,0.1391239]
[1646943054764,0.16668938,2608.6,2608.3,0.1391239]
[1646943055365,0.16668938,2608.6,2608.3,1.02313305]
[1646943055567,0.16668938,2608.6,2608.4,0.1391239]
[1646943055806,0.16668938,2608.6,2608.3,0.88400915]
[1646943056208,0.16668938,2608.6,2608.3,0.88235075]
[1646943056605,0.16668938,2608.6,2608.3,0.88400915]
[1646943057409,0.16668938,2608.6,2608.3,0.88235075]
[1646943058210,0.16668938,2608.6,2608.4,0.22612852]
[1646943058409,0.16668938,2608.6,2608.4,0.08730564]
[1646943061168,0.16668938,2608.6,2608.5,0.21455805]
[1646943062770,6.3482,2609.7,2608.5,14.31444805]
[1646943062771,0.00418002,2608.7,2608.5,14.31444805]
[1646943062968,0.00418002,2608.7,2608.6,3.63879675]
[1646943063221,0.00418002,2608.7,2608.6,4.10179675]
[1646943063407,7.5456,2609.7,2608.6,5.06024675]
[1646943063607,7.5456,2609.7,2609.4,1.03152482]
[1646943063807,1.1974,2609.7,2609.4,1.03152482]
[1646943064007,0.9585,2609.9,2609.4,1.03152482]
[1646943064818,1.42206692,2609.8,2609.4,1.03152482]
[1646943065014,1.42206692,2609.8,2609.1,0.0892493]
[1646943065015,1.42624626,2609.8,2609.1,0.0892493]
[1646943065215,0.95847,2609.7,2609.1,0.0892493]
[1646943065414,0.95847,2609.7,2608.8,0.07631358]
[1646943065613,0.95847,2609.7,2608.9,0.13874137]
[1646943066014,0.95847,2609.7,2609.1,1.03915682]
[1646943066213,0.00407621,2609.4,2609.2,0.07492246]
[1646943067059,0.95847,2609.7,2609.2,0.07492246]
[1646943067260,0.00407618,2609.4,2609.2,0.07492246]
[1646943068659,0.00407618,2609.4,2609.3,1.18587184]
[1646943069061,0.00407618,2609.4,2609.3,1.2618207]
[1646943069460,0.95847,2609.7,2609.3,1.2618207]
[1646943069665,0.00407738,2609.5,2609.3,1.2618207]
[1646943070718,0.0752847,2609.6,2609.3,1.18587184]
[1646943070909,0.00407735,2609.5,2609.4,0.08305439]
[1646943071908,0.0752847,2609.6,2609.4,0.08305439]
[1646943072208,0.07936201,2609.6,2609.4,0.08305439]
[1646943073109,0.0752847,2609.6,2609.4,0.08305439]
[1646943073410,0.06113464,2609.6,2609.4,0.08305439]
[1646943073612,0.06521183,2609.6,2609.4,0.08305439]
[1646943074211,0.07569011,2609.6,2609.4,0.08305439]
[1646943074665,0.0797673,2609.6,2609.4,0.08305439]
[1646943075563,0.07569011,2609.6,2609.4,0.08305439]
[1646943075763,0.0797673,2609.6,2609.4,0.08305439]
[1646943076368,0.0797673,2609.6,2609.4,3.5]
[1646943076565,0.0797673,2609.6,2609.5,0.0693238]
[1646943076765,0.07569011,2609.6,2609.5,3.5693238]
[1646943076964,0.07569011,2609.6,2609.5,3.63854449]
[1646943077163,0.0797673,2609.6,2609.5,3.63854449]
[1646943077968,0.07569011,2609.6,2609.5,3.63854449]
[1646943079615,0.07569011,2609.6,2609.5,0.13854449]
[1646943079816,0.07569011,2609.6,2609.5,0.15543811]
[1646943083061,0.07569011,2609.6,2609.5,0.34693811]
[1646943083962,0.07569011,2609.6,2609.5,0.15543811]
[1646943087015,1.50537217,2609.6,2609.5,0.15543811]
[1646943088115,0.07569011,2609.6,2609.5,0.15543811]
[1646943089766,0.07569011,2609.6,2609.5,0.01689362]
[1646943089966,1.50541775,2609.6,2609.5,0.01689362]
[1646943092069,0.07569011,2609.6,2609.5,0.15615728]
[1646943093221,0.06143778,2609.6,2609.5,0.15615728]
[1646943094815,0.07740361,2609.6,2609.5,0.15615728]
[1646943103817,1.51211076,2609.6,2609.5,0.15615728]
[1646943113364,1.51368474,2609.6,2609.5,0.15615728]
[1646943113564,0.07740361,2609.6,2609.5,0.15615728]
[1646943113764,1.5136806,2609.6,2609.5,0.15615728]
[1646943114065,0.07740361,2609.6,2609.5,0.15615728]
[1646943114465,1.51389222,2609.6,2609.5,0.15615728]
[1646943114667,0.07740361,2609.6,2609.5,0.15615728]
[1646943114868,1.51388807,2609.6,2609.5,0.15615728]
[1646943115068,0.07740361,2609.6,2609.5,0.15615728]
[1646943115469,1.51406716,2609.6,2609.5,0.15615728]
[1646943115725,1.51406705,2609.6,2609.5,0.15615728]
[1646943116014,1.51406597,2609.6,2609.5,0.15615728]
[1646943116215,0.07639329,2609.6,2609.5,0.15615728]
[1646943116417,1.51302536,2609.6,2609.5,0.15615728]
[1646943116616,0.07639329,2609.6,2609.5,0.15615728]
[1646943116819,1.51302257,2609.6,2609.5,0.15615728]
[1646943117017,0.07639329,2609.6,2609.5,0.15615728]
[1646943117216,1.51302173,2609.6,2609.5,0.15615728]
[1646943117416,0.07639329,2609.6,2609.5,0.15615728]
[1646943117617,1.51304038,2609.6,2609.5,1.17425209]
[1646943117817,0.07639329,2609.6,2609.5,1.17425209]
[1646943118018,1.51295289,2609.6,2609.5,0.15615728]
[1646943118218,1.51297224,2609.6,2609.5,0.15615728]
[1646943123720,0.07639329,2609.6,2609.5,0.15615728]
[1646943123918,1.51302902,2609.6,2609.5,0.15615728]
[1646943124119,0.07639329,2609.6,2609.5,0.15615728]
[1646943124317,0.07639329,2609.6,2609.5,1.27516316]
[1646943124318,1.51300099,2609.6,2609.5,1.27516316]
[1646943124522,0.07639329,2609.6,2609.5,1.27516316]
[1646943124727,1.51299155,2609.6,2609.5,1.27516316]
[1646943124923,1.51298569,2609.6,2609.5,1.27516316]
[1646943125125,0.07639329,2609.6,2609.5,1.27516316]
[1646943125622,1.51297052,2609.6,2609.5,1.27516316]
[1646943125823,0.07639329,2609.6,2609.5,1.27516316]
[1646943126223,1.51300387,2609.6,2609.5,1.27516316]
[1646943126425,0.07639329,2609.6,2609.5,1.27516316]
[1646943126625,1.51296327,2609.6,2609.5,1.27516316]
[1646943126827,0.07639329,2609.6,2609.5,1.27516316]
[1646943127062,1.51294787,2609.6,2609.5,1.27516316]
[1646943127273,1.51294787,2609.6,2609.5,4.77516316]
[1646943127274,0.07639329,2609.6,2609.5,4.77516316]
[1646943127465,0.07639329,2609.6,2609.5,6.3475879]
[1646943127662,1.51292714,2609.6,2609.5,6.3475879]
[1646943127863,1.1733,2610.1,2609.9,0.18921071]
[1646943128063,4.68513449,2610.4,2610.0,0.13926366]
[1646943128371,1.43774722,2610.3,2610.0,1.07778388]
[1646943128568,1.43774722,2610.3,2610.1,0.13926366]
[1646943130467,1.43774722,2610.3,2610.1,1.09728366]
[1646943130724,1.43774722,2610.3,2610.2,0.13926366]
[1646943132115,1.43774722,2610.3,2610.1,0.13926366]
[1646943133516,1.44160373,2610.3,2610.1,0.13926366]
[1646943134461,1.43774722,2610.3,2610.1,0.13926366]
[1646943134668,1.47078928,2610.3,2610.2,0.0319546]
[1646943134867,1.47078928,2610.3,2610.2,0.17121826]
[1646943135670,1.46693277,2610.3,2610.2,0.17121826]
[1646943139416,1.46693277,2610.3,2610.2,3.67121826]
[1646943139919,1.46693277,2610.3,2610.2,0.17121826]
[1646943140122,0.02918555,2610.3,2610.2,0.17121826]
[1646943146416,0.02918555,2610.3,2610.2,1.12918276]
[1646943147214,0.02918555,2610.3,2610.2,1.32068276]
[1646943147914,0.01836922,2610.3,2610.2,0.36271826]
[1646943149570,0.01836922,2610.3,2610.2,0.43183246]
[1646943150170,0.02918555,2610.3,2610.2,0.43183246]
[1646943152172,0.02918555,2610.3,2610.2,0.36271826]
[1646943152372,0.02918555,2610.3,2610.2,0.17121826]
[1646943153232,1.45545679,2610.3,2610.2,0.17121826]
[1646943153526,1.4555901,2610.3,2610.2,0.17121826]
[1646943154722,1.4555901,2610.3,2610.2,0.0151546]
[1646943154723,4.9555901,2610.3,2610.2,0.0151546]
[1646943155327,16.6555901,2610.3,2610.2,0.0151546]
[1646943155924,12.65858,2610.2,2609.9,0.18921071]
[1646943156127,5.11790455,2610.1,2609.9,0.18921071]
[1646943156325,5.92640455,2610.0,2609.9,0.18921071]
[1646943156723,5.50920461,2610.0,2609.9,0.18921071]
[1646943156966,6.93667538,2610.0,2609.9,0.18921071]
[1646943157169,18.63667538,2610.0,2609.9,0.02560462]
[1646943157368,0.384,2609.9,2608.8,0.3832]
[1646943157569,22.07760151,2610.0,2608.9,0.13945118]
[1646943157570,12.084,2609.7,2608.9,0.13945118]
[1646943157769,5.31147077,2609.6,2609.0,0.13945118]
[1646943157968,5.31147077,2609.6,2609.1,0.13945118]
[1646943157969,1.42747077,2609.5,2609.1,0.13945118]
[1646943158171,1.42747077,2609.5,2609.2,0.13945118]
[1646943158370,1.04400671,2609.4,2609.3,0.13945118]
[1646943158572,2.47147748,2609.4,2609.3,0.13945118]
[1646943158774,2.47147748,2609.4,2608.7,0.00563873]
[1646943158971,1.43071435,2609.3,2608.8,0.13945118]
[1646943159172,3.5,2609.2,2608.9,0.13945118]
[1646943159370,3.5,2609.2,2609.0,0.13945118]
[1646943159572,3.5,2609.2,2609.1,0.13945118]
[1646943159773,4.93081022,2609.2,2608.6,0.13945118]
[1646943159976,3.884,2609.3,2608.7,0.00410252]
[1646943160176,0.89985271,2609.1,2608.7,0.00410252]
[1646943160818,1.95876,2609.4,2608.6,0.13945118]
[1646943161118,1.42949721,2609.3,2608.7,0.00410238]
[1646943161329,1.42949721,2609.3,2608.8,0.95859]
[1646943161521,1.1933,2609.6,2608.9,0.2168539]
[1646943161719,1.42941521,2609.5,2609.0,1.36526859]
[1646943161918,1.42941521,2609.5,2609.1,0.21779148]
[1646943162117,4.90836498,2609.7,2609.2,0.13945118]
[1646943162318,1.42911477,2609.6,2609.2,0.13945118]
[1646943163122,1.42911477,2609.6,2609.3,0.13945118]
[1646943163322,1.42911477,2609.6,2608.9,0.07516642]
[1646943163524,5.31311477,2609.6,2609.0,0.13917971]
[1646943163724,1.17356498,2609.7,2609.1,0.13917971]
[1646943163725,1.42911477,2609.5,2609.1,0.13917971]
[1646943163928,3.51619498,2609.7,2609.2,0.13917971]
[1646943163929,1.42911477,2609.4,2609.2,0.13917971]
[1646943164123,3.51619498,2609.7,2608.8,0.08579518]
[1646943164325,1.42896458,2609.6,2608.9,0.13918172]
[1646943164566,1.42896458,2609.6,2608.9,0.20959808]
[1646943164767,1.42896458,2609.6,2609.0,0.13918172]
[1646943164968,6.27164458,2609.6,2609.0,0.13918172]
[1646943165171,0.03004712,2609.3,2609.1,0.13918172]
[1646943165367,0.03004712,2609.3,2608.7,0.10573653]
[1646943165567,0.03004712,2609.3,2608.8,0.13921069]
[1646943166168,0.03004712,2609.3,2608.8,0.22660004]
[1646943166368,0.03004712,2609.3,2608.9,0.13921069]
[1646943167870,0.02469959,2609.3,2608.9,0.22530934]
[1646943168070,0.02469959,2609.3,2609.1,1.15973385]
[1646943168314,0.02469959,2609.3,2609.2,0.13921069]
[1646943169119,0.02469959,2609.3,2609.2,0.2162313]
[1646943171521,0.02469959,2609.3,2609.2,1.1746913]
[1646943172172,0.02469959,2609.3,2609.2,0.2162313]
[1646943174473,0.02469959,2609.3,2609.2,0.22895756]
[1646943177824,0.02304135,2609.3,2609.2,0.22895756]
[1646943178423,0.02304135,2609.3,2609.2,1.18733756]
[1646943178623,0.02304135,2609.3,2609.2,1.11031695]
[1646943179475,0.02977975,2609.3,2609.2,1.09759069]
[1646943187994,0.01897146,2609.3,2609.2,1.09759069]
[1646943188600,0.01897146,2609.3,2609.2,0.13921069]
[1646943189401,0.02767826,2609.3,2609.2,0.13921069]
[1646943194132,0.02767826,2609.3,2609.2,0.20837035]
[1646943194680,0.02767826,2609.3,2609.2,0.91229509]
[1646943195285,0.02767826,2609.3,2609.2,0.20837035]
[1646943197788,0.02767826,2609.3,2609.2,0.67137035]
[1646943198234,0.02767826,2609.3,2609.2,1.05537035]
[1646943199123,0.02767826,2609.3,2609.2,0.67137035]
[1646943201129,0.02767826,2609.3,2609.2,1.37767579]
[1646943201327,0.02767826,2609.3,2609.2,0.91467579]
[1646943202174,0.02767826,2609.3,2609.2,0.20837035]
[1646943202979,0.02767826,2609.3,2609.2,1.14800616]
[1646943203175,0.02767826,2609.3,2609.2,0.20837035]
[1646943203377,0.02767826,2609.3,2609.2,1.14800616]
[1646943208040,0.01729462,2609.3,2609.2,1.14800616]
[1646943209334,0.02713784,2609.3,2609.2,1.14800616]
[1646943209589,0.02713784,2609.3,2609.2,0.20837035]
[1646943211392,0.02713784,2609.3,2609.2,1.14800616]
[1646943214833,0.02713784,2609.3,2609.2,0.20837035]
[1646943217082,0.02713784,2609.3,2609.2,0.67137035]
[1646943217886,0.02713784,2609.3,2609.2,2.0765294]
[1646943218082,0.02713784,2609.3,2609.2,14.1605294]
[1646943218286,0.02713784,2609.3,2609.2,15.1605294]
[1646943218684,0.02713784,2609.3,2609.2,16.2740294]
[1646943218883,0.02713784,2609.3,2609.2,14.86887035]
[1646943219387,0.02713784,2609.3,2609.2,16.2740294]
[1646943220089,0.02713784,2609.3,2609.2,2.78487035]
[1646943220287,0.02713784,2609.3,2609.2,0.67137035]
[1646943220488,0.02713784,2609.3,2609.2,1.67137035]
[1646943220735,0.02713784,2609.3,2609.2,0.67137035]
[1646943220933,3.70178646,2610.4,2609.4,0.95827]
[1646943221130,1.43493323,2610.3,2609.8,0.70546684]
[1646943221331,1.43493323,2610.3,2609.8,1.66356684]
[1646943221529,1.43493323,2610.3,2609.9,0.13921069]
[1646943221730,1.43493323,2610.3,2609.9,0.84467753]
[1646943221931,1.43493323,2610.3,2610.0,0.13921069]
[1646943222230,1.43493323,2610.3,2610.2,2.05575856]
[1646943222430,1.43493323,2610.3,2610.2,2.19496925]
[1646943222930,1.43493323,2610.3,2610.2,4.11095925]
[1646943223331,1.43493323,2610.7,2610.2,4.11095925]
[1646943223537,1.43493323,2610.7,2610.3,0.13921069]
[1646943223732,0.00406412,2610.4,2610.3,1.09721069]
[1646943224032,0.00406412,2610.4,2610.3,0.13921069]
[1646943224477,1.43899735,2610.4,2610.3,0.13921069]
[1646943224682,1.43493323,2610.4,2610.3,0.13921069]
[1646943224881,1.1797,2610.8,2610.6,0.93399717]
[1646943225083,1.4336251,2610.7,2610.6,2.84986717]
[1646943225283,1.4336251,2610.7,2610.6,2.03015258]
[1646943225482,1.4336251,2610.8,2610.6,1.07220258]
[1646943225681,0.04636982,2610.9,2610.6,0.93399717]
[1646943225682,1.4336251,2610.7,2610.6,0.93399717]
[1646943225881,1.4336251,2610.7,2610.6,1.07215887]
[1646943226086,1.4336251,2610.8,2610.6,0.1381617]
[1646943226282,1.4336251,2610.7,2610.2,1.91599]
[1646943226482,1.4336251,2610.7,2610.3,0.1381309]
[1646943227284,1.43756712,2610.6,2610.4,1.01714328]
[1646943227582,1.4336251,2610.5,2610.4,1.01714328]
[1646943227783,1.4336251,2610.5,2610.4,1.15528443]
[1646943227982,1.4336251,2610.5,2610.4,0.13814115]
[1646943228633,4.06335357,2611.1,2610.3,0.13814115]
[1646943228634,0.00396509,2610.6,2610.3,0.13814115]
[1646943229435,2.13891699,2611.0,2610.3,0.13814115]
[1646943229636,2.13891699,2611.0,2610.3,1.00475061]
[1646943229835,0.00378438,2610.6,2610.4,0.13814115]
[1646943230435,1.43740948,2610.6,2610.4,0.13814115]
[1646943230637,1.4336251,2610.5,2610.4,0.13814115]
[1646943230837,1.4336251,2610.6,2610.4,0.13814115]
[1646943231036,1.43740945,2610.6,2610.4,0.13814115]
[1646943231240,0.00378435,2610.6,2610.4,0.13814115]
[1646943231437,1.43581739,2610.6,2610.4,0.13814115]
[1646943231637,0.05113679,2610.7,2610.6,0.24992264]
[1646943231837,0.05113679,2610.7,2610.6,0.38806379]
[1646943232081,1.48323617,2610.7,2610.6,0.38806379]
[1646943234989,1.43209938,2610.7,2610.6,0.38806379]
[1646943235389,1.43209938,2611.0,2610.6,0.38806379]
[1646943235589,1.43209938,2610.9,2610.7,0.13814115]
[1646943235833,1.43649541,2610.8,2610.7,0.13814115]
[1646943236032,1.43649541,2610.8,2610.7,1.09602115]
[1646943236536,0.00439603,2610.8,2610.7,1.09602115]
[1646943236733,1.206,2611.4,2610.7,1.09602115]
[1646943236933,0.00439596,2610.9,2610.8,1.24558535]
[1646943237131,0.00439596,2610.9,2610.8,3.24417106]
[1646943237332,0.00439596,2610.9,2610.8,5.07609725]
[1646943237937,0.75808721,2611.6,2610.8,6.03384725]
[1646943238133,0.00439588,2611.0,2610.9,0.13814115]
[1646943238332,0.00439588,2611.0,2610.9,0.60114115]
[1646943239035,0.70529189,2611.9,2610.9,1.55875115]
[1646943239036,0.93108033,2611.7,2610.9,1.55875115]
[1646943239237,1.42273861,2611.6,2611.3,0.9575682]
[1646943239484,1.42273861,2611.5,2611.3,0.9575682]
[1646943239685,0.70529189,2611.9,2611.3,0.9575682]
[1646943239686,1.42273861,2611.4,2611.3,0.9575682]
[1646943240088,2.1280305,2611.9,2611.3,0.9575682]
[1646943240390,3.4985,2612.1,2611.3,0.9575682]
[1646943240391,1.42273861,2611.8,2611.5,0.9573571]
[1646943240588,0.70529189,2612.1,2611.7,0.99815209]
[1646943240891,1.4209946,2612.0,2611.7,0.99815209]
[1646943241089,0.70529189,2612.2,2611.7,0.99815209]
[1646943241090,1.4209946,2611.9,2611.7,0.99815209]
[1646943241291,1.4209946,2611.9,2611.8,0.95738]
[1646943241493,1.4209946,2611.9,2611.8,2.06211794]
[1646943241695,0.00243254,2611.9,2611.8,2.06211794]
[1646943241891,0.00243254,2611.9,2611.8,2.25341794]
[1646943242692,1.4209946,2612.3,2611.8,2.25341794]
[1646943242993,0.00243132,2612.0,2611.9,2.06184454]
[1646943243839,1.4209946,2612.3,2611.9,2.06184454]
[1646943244041,0.00440268,2612.1,2612.0,0.14736534]
[1646943244841,0.00440268,2612.1,2611.9,5.7434192]
[1646943245042,0.02599858,2612.0,2611.9,5.75728936]
[1646943245242,0.02599858,2612.0,2611.9,5.90628356]
[1646943245842,0.02599858,2612.0,2611.9,5.75728936]
[1646943246143,0.02599858,2612.0,2611.9,5.90611955]
[1646943246542,0.02599858,2612.0,2611.9,6.90611955]
[1646943246979,0.02599858,2612.0,2611.9,6.75728936]
[1646943247786,0.02599858,2612.0,2611.9,6.90600073]
[1646943248186,0.02599858,2612.0,2611.9,5.90600073]
[1646943248387,0.02599858,2612.0,2611.9,3.84281016]
[1646943248787,0.02599858,2612.0,2611.9,1.92835016]
[1646943248986,0.02599858,2612.0,2611.9,0.01387016]
[1646943249986,0.05095239,2612.0,2611.9,0.01387016]
[1646943250588,0.05095239,2612.0,2611.9,0.73437016]
[1646943251539,0.05095239,2612.0,2611.9,0.88478293]
[1646943251740,0.04025112,2612.0,2611.9,0.8847783]
[1646943251943,0.04025112,2612.0,2611.9,0.73437016]
[1646943252140,0.04025112,2612.0,2611.9,0.88465911]
[1646943253341,0.04025112,2612.0,2611.9,0.16415911]
[1646943253740,0.04025112,2612.0,2611.9,0.01387016]
[1646943254484,0.05088933,2612.0,2611.9,0.01387016]
[1646943262681,0.05088933,2612.0,2611.8,4.04694128]
[1646943263481,0.05499007,2612.0,2611.8,4.04694128]
[1646943263681,0.05499007,2612.0,2611.8,3.85564128]
[1646943264381,0.05088933,2612.0,2611.8,3.85564128]
[1646943264588,0.05499007,2612.0,2611.8,3.85564128]
[1646943264987,0.05499007,2612.0,2611.9,0.01463122]
[1646943265588,0.05088933,2612.0,2611.9,0.01463122]
[1646943271688,0.04024111,2612.0,2611.9,0.01463122]
[1646943274640,0.0495646,2612.0,2611.9,0.01463122]
[1646943275942,0.0495646,2612.0,2611.9,0.1651228]
[1646943276343,0.0495646,2612.0,2611.9,0.16517674]
[1646943276741,0.0495646,2612.0,2611.9,0.01463122]
[1646943276984,0.0495646,2612.0,2611.9,0.1652117]
[1646943281241,0.0495646,2612.0,2611.9,0.25109521]
[1646943281242,1.41853221,2612.0,2611.9,0.25109521]
[1646943281436,0.00411176,2612.1,2612.0,0.95741]
[1646943281635,0.00411176,2612.1,2612.0,1.19742889]
[1646943282234,0.00254674,2612.1,2612.0,1.19742889]
[1646943282434,1.42032007,2612.6,2612.0,3.18167719]
[1646943282639,0.94220903,2613.0,2612.1,0.22079509]
[1646943282640,1.42032007,2612.5,2612.1,0.22079509]
[1646943282838,2.8187,2613.2,2612.3,0.70546684]
[1646943283039,1.4060934,2613.1,2612.4,2.65274968]
[1646943283335,1.4060934,2613.1,2612.5,0.22980468]
[1646943283535,1.4060934,2613.1,2612.7,0.07750642]
[1646943283736,1.4060934,2613.1,2612.8,0.15058048]
[1646943283737,1.2560934,2613.1,2612.8,0.15058048]
[1646943283938,0.00242821,2612.9,2612.8,0.15058048]
[1646943284336,0.00242821,2612.9,2612.8,0.22051514]
[1646943284786,1.1974,2613.3,2612.8,0.22051514]
[1646943284987,1.1974,2613.3,2612.8,0.06993466]
[1646943284988,0.00242918,2613.0,2612.8,0.06993466]
[1646943285986,1.22275583,2613.2,2612.8,1.02702466]
[1646943286187,1.22275583,2613.2,2612.8,0.06993466]
[1646943286188,0.00242918,2613.0,2612.8,0.06993466]
[1646943287189,1.22275583,2613.2,2612.8,0.06993466]
[1646943287587,0.00242918,2613.0,2612.8,0.06993466]